[Event "IM Marmaris Karia V 2019"]
[Site "Marmaris"]
[Date "2019.03.09"]
[Round "1.1"]
[White "Tanriverdi, Enes"]
[Black "Nagy, Gabor"]
[Result "0-1"]
[ECO "A50"]
[WhiteElo "2310"]
[BlackElo "2487"]
[Annotator "ChessBase"]
[PlyCount "70"]
[EventDate "2019.03.09"]
[EventType "schev"]
[EventCountry "TUR"]
[SourceTitle "playchess.com"]
[Source "ChessBase"]
[SourceQuality "1"]
[TimeControl "5400+30"]

1. d4 {[%emt 0:00:30]} Nf6 {[%emt 0:00:30]} 2. c4 {[%emt 0:00:00]} b6 {[%emt 0:00:30]} 3. Nc3 {[%emt 0:00:00]} Bb7 {[%emt 0:00:30]} 4. Qc2 {[%emt 0:00:30]} d5 {[%emt 0:01:30]} 5. cxd5 {[%emt 0:00:00]} Nxd5 {[%emt 0:00:30]} 6. Nf3 {[%emt 0:00:00]} e6 {[%emt 0:01:30]} 7. e4 {[%emt 0:00:30]} Nxc3 {[%emt 0:00:30]} 8. bxc3 {[%emt 0:00:00]} Nd7 {[%emt 0:01:30]} 9. Bd3 {[%emt 0:02:00]} Be7 {[%emt 0:00:30]} 10. O-O {[%emt 0:01:30]} O-O {[%emt 0:00:30]} 11. Qe2 {[%emt 0:00:30]} c5 {[%emt 0:00:30]} 12. Bb2 {[%emt 0:00:30]} Rc8 {[%emt 0:00:30]} 13. Rad1 {[%emt 0:05:30]} cxd4 {[%emt 0:09:30]} 14. cxd4 {[%emt 0:00:00]} Rc7 {[%emt 0:02:30]} 15. d5 {[%emt 0:10:00]} exd5 {[%emt 0:00:30]} 16. exd5 {[%emt 0:00:30]} Bf6 {[%emt 0:01:30]} 17. Rfe1 {[%emt 0:13:30]} Bxb2 {[%emt 0:03:30]} 18. Qxb2 {[%emt 0:00:30]} Nf6 {[%emt 0:07:30]} 19. d6 {[%emt 0:26:30]} Rd7 {[%emt 0:00:30]} 20. Qd2 {[%emt 0:14:30]} Bxf3 {[%emt 0:00:30]} 21. gxf3 {[%emt 0:00:30]} Re8 {[%emt 0:01:30]} 22. Rxe8+ {[%emt 0:17:54]} Nxe8 {[%emt 0:00:30]} 23. Qc2 {[%emt 0:00:07]} g6 {[%emt 0:00:30]} 24. Bc4 {[%emt 0:01:35]} Rxd6 {[%emt 0:00:30]} 25. Re1 {[%emt 0:00:06]} Nf6 {[%emt 0:02:30]} 26. Bb3 {[%emt 0:00:06]} Kg7 {[%emt 0:00:30]} 27. Qc4 {[%emt 0:00:10]} Qd7 {[%emt 0:00:30]} 28. Qf4 {[%emt 0:00:59]} a5 {[%emt 0:01:30]} 29. Qe5 {[%emt 0:00:40]} b5 {[%emt 0:01:30]} 30. Qc3 {[%emt 0:05:13]} a4 {[%emt 0:00:30]} 31. Bc2 {[%emt 0:00:30]} Rc6 {[%emt 0:00:30]} 32. Qd3 {[%emt 0:00:00]} Qc7 {[%emt 0:01:30]} 33. Bd1 {[%emt 0:00:35]} Rc5 {[%emt 0:00:30]} 34. Qe3 {[%emt 0:00:32]} Rh5 {[%emt 0:00:30]} 35. f4 {[%emt 0:00:15]} Rf5 {[%emt 0:00:00]} 0-1

[Event "IM Marmaris Karia V 2019"]
[Site "Marmaris"]
[Date "2019.03.05"]
[Round "1.1"]
[White "Korkmaz, Goktug Ali"]
[Black "Kurtulus, Yusuf Berk"]
[Result "0-1"]
[ECO "B22"]
[WhiteElo "1356"]
[BlackElo "1455"]
[Annotator "NA RC"]
[PlyCount "156"]
[EventDate "2019.03.09"]
[EventType "schev"]
[EventCountry "TUR"]
[SourceTitle "playchess.com"]
[Source "ChessBase"]
[SourceQuality "1"]
[TimeControl "5400+30"]

1. e4 {[%emt 0:45:30]} c5 {[%emt 0:45:30]} 2. c3 {[%emt 0:00:30]} Nf6 {[%emt 0:00:00]} 3. e5 {[%emt 0:00:00]} Nd5 {[%emt 0:00:00]} 4. d4 {[%emt 0:01:00]} cxd4 {[%emt 0:00:30]} 5. cxd4 {[%emt 0:01:30]} Nc6 {[%emt 0:00:30]} 6. Bc4 {[%emt 0:00:30]} Nb6 {[%emt 0:00:30]} 7. Bb3 {[%emt 0:00:30]} d6 {[%emt 0:02:30]} 8. exd6 {[%emt 0:01:30]} Qxd6 {[%emt 0:01:30]} 9. Ne2 {[%emt 0:00:30]} g6 {[%emt 0:04:30]} 10. Nbc3 {[%emt 0:02:30]} Bg7 {[%emt 0:09:30]} 11. Be3 {[%emt 0:00:30]} O-O {[%emt 0:01:30]} 12. a3 {[%emt 0:04:30]} a6 {[%emt 0:09:30]} 13. Qd2 {[%emt 0:01:30]} Na5 {[%emt 0:06:25]} 14. Ba2 {[%emt 0:02:30]} Nac4 {[%emt 0:00:20]} 15. Bxc4 {[%emt 0:00:00]} Nxc4 {[%emt 0:00:03]} 16. Qc2 {[%emt 0:00:00]} Bf5 {[%emt 0:02:09]} 17. Qb3 {[%emt 0:02:30]} Nxe3 {[%emt 0:03:30]} 18. fxe3 {[%emt 0:00:30]} Bh6 {[%emt 0:01:56]} 19. e4 {[%emt 0:01:30]} Be6 {[%emt 0:02:24]} 20. d5 {[%emt 0:00:30]} Bd7 {[%emt 0:00:47]} 21. O-O {[%emt 0:00:30]} b5 {[%emt 0:00:34]} 22. Rad1 {[%emt 0:02:30]} Qe5 {[%emt 0:00:59]} 23. Ng3 {[%emt 0:01:30]} Bf4 {[%emt 0:01:47]} 24. Nce2 {[%emt 0:00:30]} Bh6 {[%emt 0:00:03]} 25. Qc3 {[%emt 0:01:30]} Bg7 {[%emt 0:01:02]} 26. Qd4 {[%emt 0:01:30]} Bg4 {[%emt 0:00:44]} 27. Qxe5 {[%emt 0:02:30]} Bxe5 {[%emt 0:00:01]} 28. Rd2 {[%emt 0:00:30]} Rfd8 {[%emt 0:00:31]} 29. h3 {[%emt 0:01:30]} Bxe2 {[%emt 0:00:02]} 30. Nxe2 {[%emt 0:00:30]} Rac8 {[%emt 0:00:04]} 31. Rc1 {[%emt 0:00:30]} Rxc1+ {[%emt 0:02:48]} 32. Nxc1 {[%emt 0:00:00]} Kf8 {[%emt 0:01:00]} 33. Kf2 {[%emt 0:01:00]} Bf4 {[%emt 0:01:34]} 34. Rc2 {[%emt 0:02:30]} Bxc1 {[%emt 0:01:32]} 35. Rxc1 {[%emt 0:00:30]} e6 {[%emt 0:00:03]} 36. Rd1 {[%emt 0:00:30]} exd5 {[%emt 0:00:03]} 37. exd5 {[%emt 0:00:30]} Ke7 {[%emt 0:00:17]} 38. Ke3 {[%emt 0:00:30]} Kd6 {[%emt 0:00:44]} 39. Kd4 {[%emt 0:00:30]} Rc8 {[%emt 0:00:10]} 40. Rd2 {[%emt 0:00:00]} Rc4+ {[%emt 0:00:15]} 41. Ke3 {[%emt 0:00:00]} f5 {[%emt 0:00:16]} 42. g3 {[%emt 0:00:30]} Re4+ {[%emt 0:00:04]} 43. Kf3 {[%emt 0:01:30]} Re5 {[%emt 0:00:02]} 44. Kf4 {[%emt 0:00:00]} Rxd5 {[%emt 0:00:46]} 45. Rxd5+ {[%emt 0:00:00]} Kxd5 {[%emt 0:00:06]} 46. Kg5 {[%emt 0:00:30]} Ke5 {[%emt 0:00:45]} 47. Kh6 {[%emt 0:01:30]} Kf6 {[%emt 0:02:37]} 48. h4 {[%emt 0:00:30]} a5 {[%emt 0:00:23]} 49. b3 {[%emt 0:00:30]} b4 {[%emt 0:00:10]} 50. a4 {[%emt 0:00:30]} Ke6 {[%emt 0:00:59]} 51. Kxh7 {[%emt 0:00:30]} Kf7 {[%emt 0:00:04]} 52. Kh6 {[%emt 0:00:30]} Kf6 {[%emt 0:00:08]} 53. h5 {[%emt 0:00:30]} gxh5 {[%emt 0:01:49]} 54. Kxh5 {[%emt 0:02:30]} f4 {[%emt 0:00:17]} 55. Kg4 {[%emt 0:00:00]} fxg3 {[%emt 0:00:04]} 56. Kxg3 {[%emt 0:00:00]} Ke5 {[%emt 0:00:06]} 57. Kf3 {[%emt 0:01:30]} Kd4 {[%emt 0:00:00]} 58. Ke2 {[%emt 0:00:00]} Kc3 {[%emt 0:00:02]} 59. Kd1 {[%emt 0:00:00]} Kxb3 {[%emt 0:00:03]} 60. Kc1 {[%emt 0:00:00]} Kxa4 {[%emt 0:00:04]} 61. Kb2 {[%emt 0:00:00]} b3 {[%emt 0:00:02]} 62. Kb1 {[%emt 0:00:00]} Ka3 {[%emt 0:00:05]} 63. Ka1 {[%emt 0:00:00]} b2+ {[%emt 0:00:02]} 64. Kb1 {[%emt 0:00:30]} a4 {[%emt 0:00:04]} 65. Kc2 {[%emt 0:00:00]} Ka2 {[%emt 0:00:06]} 66. Kd3 {[%emt 0:00:00]} b1=Q+ {[%emt 0:00:06]} 67. Kd4 {[%emt 0:00:30]} Qc2 {[%emt 0:00:02]} 68. Kd5 {[%emt 0:00:00]} Qc3 {[%emt 0:00:03]} 69. Kd6 {[%emt 0:00:00]} Qa5 {[%emt 0:00:06]} 70. Ke6 {[%emt 0:00:00]} Qc5 {[%emt 0:00:10]} 71. Kf6 Kb3 {[%emt 0:00:07]} 72. Ke6 {[%emt 0:00:30]} a3 {[%emt 0:00:06]} 73. Kf6 {[%emt 0:00:00]} a2 {[%emt 0:00:17]} 74. Ke6 {[%emt 0:00:00]} a1=Q {[%emt 0:00:06]} 75. Kd7 {[%emt 0:00:30]} Qad4+ {[%emt 0:00:01]} 76. Ke6 {[%emt 0:00:30]} Qdd6+ {[%emt 0:00:30]} 77. Kf7 {[%emt 0:00:00]} Qcc7+ {[%emt 0:00:09]} 78. Ke8 {[%emt 0:00:00]} Qde7# 0-1

[Event "IM Marmaris Karia V 2019"]
[Site "Marmaris"]
[Date "2019.03.09"]
[Round "1.2"]
[White "Keler, Faruk"]
[Black "Bajarani, Ulvi"]
[Result "0-1"]
[ECO "C06"]
[WhiteElo "2291"]
[BlackElo "2460"]
[Annotator "ChessBase"]
[PlyCount "90"]
[EventDate "2019.03.09"]
[EventType "schev"]
[EventCountry "TUR"]
[SourceTitle "playchess.com"]
[Source "ChessBase"]
[SourceQuality "1"]
[TimeControl "5400+30"]

1. e4 {[%emt 0:00:30]} e6 {[%emt 0:00:30]} 2. d4 {[%emt 0:00:00]} d5 {[%emt 0:00:00]} 3. Nd2 {[%emt 0:00:00]} Nf6 {[%emt 0:00:00]} 4. e5 {[%emt 0:00:30]} Nfd7 {[%emt 0:00:00]} 5. Bd3 {[%emt 0:00:00]} c5 {[%emt 0:00:00]} 6. c3 {[%emt 0:00:00]} Nc6 {[%emt 0:00:30]} 7. Ne2 {[%emt 0:00:00]} cxd4 {[%emt 0:00:00]} 8. cxd4 {[%emt 0:00:00]} f6 {[%emt 0:00:00]} 9. exf6 {[%emt 0:00:30]} Nxf6 {[%emt 0:00:00]} 10. O-O {[%emt 0:00:30]} Bd6 {[%emt 0:00:00]} 11. Nf3 {[%emt 0:00:00]} O-O {[%emt 0:00:30]} 12. Bf4 {[%emt 0:00:00]} Bxf4 {[%emt 0:00:00]} 13. Nxf4 {[%emt 0:00:00]} Ng4 {[%emt 0:00:00]} 14. Qd2 {[%emt 0:00:00]} Qf6 {[%emt 0:01:30]} 15. Nh5 {[%emt 0:00:30]} Qh6 {[%emt 0:00:00]} 16. Qxh6 {[%emt 0:00:00]} Nxh6 {[%emt 0:00:00]} 17. Rac1 {[%emt 0:00:00]} Nf5 {[%emt 0:01:30]} 18. Rfd1 {[%emt 0:02:30]} Bd7 {[%emt 0:02:30]} 19. Bb5 {[%emt 0:08:30]} Nfe7 {[%emt 0:07:30]} 20. Bxc6 {[%emt 0:27:30]} Nxc6 {[%emt 0:00:30]} 21. Ne5 {[%emt 0:15:30]} Nxe5 {[%emt 0:04:30]} 22. dxe5 {[%emt 0:00:30]} Rac8 {[%emt 0:00:30]} 23. Ng3 {[%emt 0:02:30]} Bb5 {[%emt 0:00:30]} 24. f3 {[%emt 0:00:30]} Kf7 {[%emt 0:01:30]} 25. Kf2 {[%emt 0:01:30]} Ke7 {[%emt 0:01:30]} 26. Ke3 {[%emt 0:00:30]} g6 {[%emt 0:00:30]} 27. Nh1 {[%emt 0:03:30]} h5 {[%emt 0:11:30]} 28. Nf2 {[%emt 0:02:30]} g5 {[%emt 0:04:30]} 29. Rxc8 {[%emt 0:12:30]} Rxc8 {[%emt 0:00:30]} 30. Kd2 {[%emt 0:00:30]} Kf7 {[%emt 0:00:30]} 31. b3 {[%emt 0:04:30]} Kg6 {[%emt 0:00:30]} 32. Re1 {[%emt 0:00:30]} a5 {[%emt 0:01:30]} 33. a4 {[%emt 0:00:30]} Ba6 {[%emt 0:00:30]} 34. Nd1 {[%emt 0:01:42]} Rf8 {[%emt 0:01:30]} 35. Ne3 {[%emt 0:05:17]} g4 {[%emt 0:00:30]} 36. fxg4 {[%emt 0:01:14]} Rf2+ {[%emt 0:00:30]} 37. Kc3 {[%emt 0:00:46]} hxg4 {[%emt 0:00:30]} 38. Nxg4 {[%emt 0:06:03]} Rxg2 {[%emt 0:00:30]} 39. h3 {[%emt 0:00:19]} Kg5 {[%emt 0:02:30]} 40. Ne3 {[%emt 0:03:34]} Rg3 {[%emt 0:00:00]} 41. Kd4 {[%emt 0:00:12]} b6 {[%emt 0:00:00]} 42. Rc1 {[%emt 0:02:28]} Rxh3 {[%emt 0:00:30]} 43. Rg1+ {[%emt 0:00:32]} Kh5 {[%emt 0:00:30]} 44. Nxd5 {[%emt 0:02:52]} Rd3+ {[%emt 0:00:30]} 45. Ke4 {[%emt 0:00:01]} Rxd5 {[%emt 0:00:30]} 0-1

[Event "IM Marmaris Karia V 2019"]
[Site "Marmaris"]
[Date "2019.03.09"]
[Round "1.4"]
[White "Haussernot, Cecile"]
[Black "Szabo, Bence"]
[Result "0-1"]
[ECO "B04"]
[WhiteElo "2144"]
[BlackElo "2376"]
[Annotator "NA"]
[PlyCount "102"]
[EventDate "2019.03.09"]
[EventType "schev"]
[EventCountry "TUR"]
[SourceTitle "playchess.com"]
[Source "ChessBase"]
[SourceQuality "1"]
[TimeControl "5400+30"]

1. e4 {[%emt 0:00:30]} Nf6 {[%emt 0:01:30]} 2. e5 {[%emt 0:00:00]} Nd5 {[%emt 0:00:30]} 3. d4 {[%emt 0:00:00]} d6 {[%emt 0:00:00]} 4. Nf3 {[%emt 0:01:30]} dxe5 {[%emt 0:01:00]} 5. Nxe5 {[%emt 0:01:30]} c6 {[%emt 0:00:30]} 6. Bc4 {[%emt 0:03:30]} Nd7 {[%emt 0:02:30]} 7. Qe2 {[%emt 0:00:30] B04: Alekhine's Defence: 4 Nf3} (7. Nf3 N7f6 8. Bb3 Bg4 9. h3 Bh5 10. g4 Bg6 11. Ne5 Nd7 12. Nxg6 hxg6 13. c4 Nc7 14. Nc3 e5 {1-0 (31) Demchenko,A (2664)-Pavlov,S (2491) Konya 2018}) 7... N7f6 $146 {[%emt 0:00:30]} ({Predecessor:} 7... Nxe5 8. dxe5 Bf5 9. O-O Qd7 10. Bb3 O-O-O 11. Nc3 Nxc3 12. bxc3 e6 13. Be3 Be7 14. Bxa7 Qc7 {1-0 (30) Sanal,V (2487)-Abhishek,K (2393) Doha 2015}) 8. Nc3 {[%emt 0:04:30]} Be6 {[%emt 0:17:30]} 9. Bg5 {[%emt 0:06:30]} Qb6 {[%emt 0:27:30]} 10. Bxf6 {[%emt 0:23:30]} Qxb2 {[%emt 0:26:11]} 11. O-O {[%emt 0:10:30]} Nxc3 {[%emt 0:03:28]} ({Not} 11... gxf6 12. Nxd5 cxd5 13. Bb5+ Kd8 14. Nf3 $15) ({Worse is} 11... exf6 12. Bxd5 cxd5 {[#]} 13. Nxd5 $1 $14 {[%mdl 512]}) 12. Qh5 {[%emt 0:01:30]} Bxc4 {[%emt 0:12:03]} 13. Nxc4 {[%emt 0:00:30]} Qb4 {[%emt 0:01:00]} 14. Ne5 {[%emt 0:04:30]} gxf6 {[%emt 0:00:20]} 15. Nxf7 {[%emt 0:03:30]} Ne2+ {[%emt 0:01:32]} 16. Qxe2 {[%emt 0:02:30]} Kxf7 {[%emt 0:00:03]} 17. Qh5+ {[%emt 0:00:30]} Kg7 {[%emt 0:00:47]} 18. Qg4+ {[%emt 0:00:30]} Kf7 {[%emt 0:00:08]} 19. Qh5+ {[%emt 0:00:30]} Kg8 {[%emt 0:01:42]} 20. Qg4+ {[%emt 0:01:30]} Bg7 {[%emt 0:00:15]} 21. Rab1 {[%emt 0:00:30]} Qd6 {[%emt 0:00:10]} 22. Rxb7 {[%emt 0:00:00]} h5 {[%emt 0:00:45]} 23. Qf5 {[%emt 0:00:00]} Rh6 {[%emt 0:00:24]} 24. Re1 {[%emt 0:01:30]} Bf8 {[%emt 0:00:16]} 25. Rd7 {[%emt 0:03:30]} Qb4 {[%emt 0:00:16]} 26. Qe6+ {[%emt 0:01:30]} Kh8 {[%emt 0:00:19]} 27. h4 {[%emt 0:01:30]} Rh7 {[%emt 0:00:54]} 28. Re3 {[%emt 0:01:30]} (28. c4 $17 {keeps fighting.}) 28... Qb1+ {[%emt 0:00:47]} 29. Kh2 {[%emt 0:00:30]} Qxc2 {[%emt 0:00:30]} 30. Rf3 {[%emt 0:01:30]} Rb8 {[%emt 0:01:07]} 31. Rxa7 {[%emt 0:00:30]} Rg7 {[%emt 0:00:31]} 32. Rf5 {[%emt 0:00:30]} Rb5 {[%emt 0:00:27]} 33. Rxb5 {[%emt 0:01:30]} cxb5 {[%emt 0:00:01]} 34. Ra8 {[%emt 0:00:30]} Rg8 {[%emt 0:01:02]} 35. Qf7 {[%emt 0:01:30]} Rxg2+ {[%emt 0:00:26]} 36. Kxg2 {[%emt 0:00:00]} Qe4+ {[%emt 0:00:04]} 37. Kg3 {[%emt 0:01:00]} Qxa8 {[%emt 0:00:53]} 38. Qxh5+ {[%emt 0:00:30]} Kg7 {[%emt 0:00:26]} 39. Qg4+ {[%emt 0:00:30]} Kf7 {[%emt 0:00:10]} 40. h5 {[%emt 0:00:00]} Qa3+ {[%emt 0:00:53]} 41. Kg2 {[%emt 0:00:00]} Qd3 {[%emt 0:00:09]} 42. f3 {[%emt 0:02:30]} Bh6 {[%emt 0:00:12]} 43. d5 {[%emt 0:00:30]} Bg5 {[%emt 0:00:57]} 44. Qe6+ $19 {[%emt 0:00:30]} Kf8 {[%emt 0:00:02]} 45. Qc8+ {[%emt 0:00:00]} Kg7 {[%emt 0:00:06]} 46. Qe6 {[%emt 0:00:00]} Qa3 {[%emt 0:00:34]} 47. Qe2 {[%emt 0:01:30]} Bf4 {[%emt 0:00:54]} 48. Qc2 {[%emt 0:00:30]} Qe3 {[%emt 0:01:06]} 49. d6 {[%emt 0:01:30]} Bxd6 {[%emt 0:00:30]} 50. Qg6+ {[%emt 0:00:30]} Kf8 {[%emt 0:00:30]} 51. h6 {[%emt 0:00:30]} Qg5+ {[%emt 0:00:22]} 0-1

[Event "IM Marmaris Karia V 2019"]
[Site "Marmaris"]
[Date "2019.03.09"]
[Round "1.5"]
[White "Ozkan, Taha"]
[Black "Dimitrijevic, Aleksandra"]
[Result "1/2-1/2"]
[ECO "A53"]
[WhiteElo "2019"]
[BlackElo "2139"]
[Annotator "NA"]
[PlyCount "100"]
[EventDate "2019.03.09"]
[EventType "schev"]
[EventCountry "TUR"]
[SourceTitle "playchess.com"]
[Source "ChessBase"]
[SourceQuality "1"]
[TimeControl "5400+30"]

1. d4 {[%emt 0:00:30]} d6 {[%emt 0:00:30]} 2. c4 {[%emt 0:00:00]} Nf6 {[%emt 0:00:00]} 3. Nc3 {[%emt 0:00:00]} Bf5 {[%emt 0:00:00]} 4. f3 {[%emt 0:02:30]} e5 {[%emt 0:02:30]} 5. e4 {[%emt 0:04:30]} exd4 {[%emt 0:01:30]} 6. Qxd4 {[%emt 0:00:30]} Nc6 {[%emt 0:00:30]} 7. Qd2 {[%emt 0:00:30]} Be6 {[%emt 0:00:30]} 8. b3 {[%emt 0:00:30]} g6 {[%emt 0:00:30]} 9. Bb2 {[%emt 0:00:30] A53: Old Indian Defence without Nf3} Bg7 {[%emt 0:01:30]} 10. Bd3 {[%emt 0:18:30]} O-O {[%emt 0:06:30]} 11. Nge2 {[%emt 0:03:30]} Nb4 {[%emt 0:03:30]} (11... Nd7 12. O-O Nc5 13. Bc2 a6 14. f4 Bg4 15. Ng3 h5 16. Bd1 Bxd1 17. Raxd1 h4 18. Nge2 a5 19. f5 Ne5 20. Nd5 Nxe4 21. Qc2 c6 22. Qxe4 cxd5 23. Qxd5 {1-0 (23) Cruz,C (2546)-Ramnath,B (2405) New Delhi 2015}) 12. Rd1 $146 {[%emt 0:05:30]} ({Predecessor:} 12. O-O c6 13. Rad1 Qb6+ 14. Kh1 a5 15. Bb1 Rad8 16. Na4 Qc7 {½-½ (60) Efremov,V (2035)-Tarasov,I (2211) St Petersburg 2018}) 12... c6 {[%emt 0:05:30]} 13. Bb1 {[%emt 0:03:30]} d5 {[%emt 0:21:30]} 14. a3 {[%emt 0:08:30]} dxc4 {[%emt 0:02:30]} 15. axb4 {[%emt 0:04:30]} cxb3 {[%emt 0:00:30]} 16. Qxd8 {[%emt 0:08:30]} Rfxd8 {[%emt 0:00:00]} 17. Kf2 {[%emt 0:00:30]} Bf8 {[%emt 0:00:00]} 18. Na4 {[%emt 0:01:30]} Nd7 {[%emt 0:00:30]} 19. Bc3 {[%emt 0:00:30]} b5 {[%emt 0:01:30]} 20. Nb2 {[%emt 0:03:30]} a5 {[%emt 0:01:30]} (20... c5 $1 $15 {keeps the upper hand.}) 21. bxa5 {[%emt 0:01:30]} b4 {[%emt 0:02:30]} 22. Bd2 {[%emt 0:01:30]} Bg7 $16 {[%emt 0:07:30]} 23. Nd3 {[%emt 0:09:30]} c5 {[%emt 0:00:30]} 24. Nxb4 {[%emt 0:03:06]} cxb4 {[%emt 0:00:30]} 25. Bxb4 {[%emt 0:00:12]} Rdb8 {[%emt 0:01:30]} 26. Bd2 {[%emt 0:02:25]} Ne5 {[%emt 0:01:30]} 27. Bc3 {[%emt 0:05:19]} Rc8 {[%emt 0:00:30]} 28. Rc1 {[%emt 0:03:14]} b2 {[%emt 0:02:30]} 29. Bxb2 {[%emt 0:01:18]} Ng4+ {[%emt 0:00:30]} 30. fxg4 {[%emt 0:00:18]} Bxb2 {[%emt 0:00:00]} 31. Rxc8+ {[%emt 0:01:28]} Bxc8 {[%emt 0:00:00]} 32. h3 {[%emt 0:01:24]} Rxa5 {[%emt 0:00:00]} 33. Rd1 {[%emt 0:00:43]} Be6 {[%emt 0:00:00]} 34. Nf4 {[%emt 0:01:18]} Bb3 {[%emt 0:02:30]} 35. Rd2 {[%emt 0:03:17]} Bc1 {[%emt 0:01:30]} 36. Rd3 {[%emt 0:02:06]} Bxf4 {[%emt 0:00:30]} 37. Rxb3 {[%emt 0:00:06]} Ra7 {[%emt 0:00:30]} 38. Bd3 {[%emt 0:00:30]} Kg7 {[%emt 0:00:30]} 39. Be2 {[%emt 0:00:30]} h6 {[%emt 0:00:30]} 40. Bf3 {[%emt 0:00:30]} Ra2+ {[%emt 0:00:30]} 41. Ke1 {[%emt 0:00:30]} Ra7 {[%emt 0:00:30]} 42. Ke2 {[%emt 0:01:29]} Rd7 {[%emt 0:00:30]} 43. Rd3 {[%emt 0:00:31]} Rxd3 {[%emt 0:00:00]} 44. Kxd3 {[%emt 0:00:05]} Be5 {[%emt 0:00:00]} 45. Kc4 {[%emt 0:00:09]} g5 {[%emt 0:00:30]} 46. Kd5 {[%emt 0:00:11]} f6 {[%emt 0:00:00]} 47. Ke6 {[%emt 0:00:09]} Bf4 {[%emt 0:00:00]} 48. Kd5 {[%emt 0:00:37]} Be5 {[%emt 0:00:00]} 49. Ke6 {[%emt 0:00:06]} Bf4 {[%emt 0:00:00]} 50. Kd5 {[%emt 0:00:04]} Be5 {[%emt 0:00:00]} 1/2-1/2

[Event "IM Marmaris Karia V 2019"]
[Site "Marmaris"]
[Date "2019.03.09"]
[Round "2.1"]
[White "Bajarani, Ulvi"]
[Black "Tanriverdi, Enes"]
[Result "1/2-1/2"]
[ECO "B85"]
[WhiteElo "2460"]
[BlackElo "2310"]
[Annotator "ChessBase"]
[PlyCount "40"]
[EventDate "2019.03.09"]
[EventType "schev"]
[EventCountry "TUR"]
[SourceTitle "playchess.com"]
[Source "ChessBase"]
[SourceQuality "1"]
[TimeControl "5400+30"]

1. e4 {[%emt 0:00:30]} c5 {[%emt 0:00:30]} 2. Nf3 {[%emt 0:00:00]} e6 {[%emt 0:00:00]} 3. d4 {[%emt 0:00:00]} cxd4 {[%emt 0:00:00]} 4. Nxd4 {[%emt 0:00:00]} Nc6 {[%emt 0:00:30]} 5. Nc3 {[%emt 0:00:00]} Qc7 {[%emt 0:00:00]} 6. Be2 {[%emt 0:00:00]} a6 {[%emt 0:00:00]} 7. O-O {[%emt 0:00:00]} Nf6 {[%emt 0:00:30]} 8. Be3 {[%emt 0:00:30]} Be7 {[%emt 0:00:00]} 9. f4 {[%emt 0:00:00]} d6 {[%emt 0:00:00]} 10. Qe1 {[%emt 0:00:00]} O-O {[%emt 0:00:30]} 11. Qg3 {[%emt 0:00:30]} Nxd4 {[%emt 0:00:30]} 12. Bxd4 {[%emt 0:00:00]} b5 {[%emt 0:00:00]} 13. a3 {[%emt 0:00:00]} Bb7 {[%emt 0:00:00]} 14. Kh1 {[%emt 0:00:00]} Rad8 {[%emt 0:00:30]} 15. Rae1 {[%emt 0:00:00]} Bc6 {[%emt 0:00:30]} 16. Bd3 {[%emt 0:00:30]} Qd7 {[%emt 0:00:00]} 17. Re2 {[%emt 0:02:30]} Nh5 {[%emt 0:04:00]} 18. Qg4 {[%emt 0:00:00]} Nf6 {[%emt 0:00:30]} 19. Qg3 {[%emt 0:00:00]} Nh5 {[%emt 0:00:30]} 20. Qg4 {[%emt 0:00:00]} Nf6 {[%emt 0:00:30]} 1/2-1/2

[Event "IM Marmaris Karia V 2019"]
[Site "Marmaris"]
[Date "2019.03.09"]
[Round "2.3"]
[White "Szabo, Bence"]
[Black "Uzumcu, Ahmet Utku"]
[Result "1/2-1/2"]
[ECO "A16"]
[WhiteElo "2376"]
[BlackElo "2211"]
[Annotator "NA"]
[PlyCount "49"]
[EventDate "2019.03.09"]
[EventType "schev"]
[EventCountry "TUR"]
[SourceTitle "playchess.com"]
[Source "ChessBase"]
[SourceQuality "1"]
[TimeControl "5400+30"]

1. c4 {[%emt 0:00:30]} Nf6 {[%emt 0:00:30]} 2. g3 {[%emt 0:00:30]} g6 {[%emt 0:00:30]} 3. Bg2 {[%emt 0:00:30]} d5 {[%emt 0:00:30]} 4. cxd5 {[%emt 0:00:30]} Nxd5 {[%emt 0:00:00]} 5. Nc3 {[%emt 0:00:30]} Nb6 {[%emt 0:00:00]} 6. Nf3 {[%emt 0:01:30]} Bg7 {[%emt 0:01:30]} 7. d3 {[%emt 0:00:30]} Nc6 {[%emt 0:01:30]} 8. Be3 {[%emt 0:00:30]} Nd4 {[%emt 0:02:30]} 9. Nxd4 {[%emt 0:05:30]} Bxd4 {[%emt 0:00:30]} 10. Bxd4 {[%emt 0:00:30]} Qxd4 {[%emt 0:00:00]} 11. O-O {[%emt 0:00:30]} c6 {[%emt 0:02:00]} 12. Rc1 {[%emt 0:02:30]} O-O {[%emt 0:01:30]} 13. Qc2 {[%emt 0:04:30]} Bf5 {[%emt 0:00:30]} 14. Ne4 {[%emt 0:07:30]} Rfd8 {[%emt 0:05:30]} 15. a3 {[%emt 0:07:30]} h6 {[%emt 0:03:30]} 16. Nc5 {[%emt 0:00:30]} Rab8 {[%emt 0:02:30]} 17. b4 {[%emt 0:03:30]} a6 {[%emt 0:01:30]} 18. Rfd1 {[%emt 0:07:30]} Nd7 {[%emt 0:04:30]} 19. Nb3 {[%emt 0:01:30]} Qd6 {[%emt 0:00:30]} 20. h3 {[%emt 0:13:30]} e5 {[%emt 0:04:30]} 21. Qb2 {[%emt 0:06:30]} Be6 {[%emt 0:02:30]} 22. Na5 {[%emt 0:02:30]} Nb6 {[%emt 0:03:30]} 23. Qd2 {[%emt 0:15:35]} Kh7 {[%emt 0:01:30]} 24. Qe3 {[%emt 0:00:54]} Qd4 {[%emt 0:03:30]} 25. Qd2 {[%emt 0:02:05]} 1/2-1/2

[Event "IM Marmaris Karia V 2019"]
[Site "Marmaris"]
[Date "2019.03.09"]
[Round "2.4"]
[White "Dimitrijevic, Aleksandra"]
[Black "Haussernot, Cecile"]
[Result "1/2-1/2"]
[ECO "B31"]
[WhiteElo "2139"]
[BlackElo "2144"]
[Annotator "NA"]
[PlyCount "75"]
[EventDate "2019.03.09"]
[EventType "schev"]
[EventCountry "TUR"]
[SourceTitle "playchess.com"]
[Source "ChessBase"]
[SourceQuality "1"]
[TimeControl "5400+30"]

1. e4 {[%emt 0:00:30]} c5 {[%emt 0:00:30]} 2. Na3 {[%emt 0:00:00]} Nf6 {[%emt 0:03:30]} 3. e5 {[%emt 0:08:00]} Nd5 {[%emt 0:00:30]} 4. g3 {[%emt 0:00:30]} Nc6 {[%emt 0:00:30]} 5. Bg2 {[%emt 0:00:00]} Nc7 {[%emt 0:01:30]} 6. Nf3 {[%emt 0:02:00]} b5 {[%emt 0:01:30]} 7. O-O {[%emt 0:00:30]} e6 {[%emt 0:02:30]} 8. d4 {[%emt 0:01:30]} h6 {[%emt 0:05:30]} 9. c4 {[%emt 0:07:30]} bxc4 {[%emt 0:06:30]} 10. Nxc4 {[%emt 0:01:30]} Ba6 {[%emt 0:01:30]} 11. Nd6+ {[%emt 0:08:30]} Bxd6 {[%emt 0:00:30]} 12. exd6 {[%emt 0:00:30]} Nd5 {[%emt 0:00:30]} 13. Re1 {[%emt 0:00:30]} c4 {[%emt 0:00:30]} 14. Ne5 {[%emt 0:00:30]} Nxe5 {[%emt 0:02:30]} 15. Bxd5 {[%emt 0:02:30]} Nd3 {[%emt 0:00:30]} 16. Rxe6+ {[%emt 0:13:30]} dxe6 {[%emt 0:11:30]} 17. Qa4+ {[%emt 0:00:30]} Kf8 {[%emt 0:00:30]} 18. Bxa8 {[%emt 0:00:30]} Qxa8 {[%emt 0:08:30]} 19. Qxa6 {[%emt 0:00:00]} Ne1 {[%emt 0:00:00]} 20. Kf1 {[%emt 0:00:00]} Nc2 {[%emt 0:01:00]} 21. d7 {[%emt 0:18:30]} Ke7 {[%emt 0:06:30]} 22. Bf4 {[%emt 0:00:30]} Nxa1 {[%emt 0:02:30]} 23. Qd6+ {[%emt 0:02:30]} Kf6 {[%emt 0:00:00]} 24. h4 {[%emt 0:02:30]} Rd8 {[%emt 0:06:00]} 25. Be5+ {[%emt 0:00:30]} Kg6 {[%emt 0:00:30]} 26. Qe7 {[%emt 0:00:30]} Nc2 {[%emt 0:29:27]} 27. h5+ {[%emt 0:00:30]} Kh7 {[%emt 0:01:03]} 28. Qxf7 {[%emt 0:01:30]} Ne3+ {[%emt 0:00:30]} 29. Ke2 {[%emt 0:00:30]} Nf5 {[%emt 0:00:30]} 30. Qg6+ {[%emt 0:00:30]} Kh8 {[%emt 0:00:30]} 31. Qxe6 {[%emt 0:00:00]} Rf8 {[%emt 0:01:27]} 32. d5 {[%emt 0:01:00]} Qd8 {[%emt 0:05:37]} 33. g4 {[%emt 0:00:30]} Qh4 {[%emt 0:00:06]} 34. gxf5 {[%emt 0:00:30]} Qe4+ {[%emt 0:00:05]} 35. Kf1 {[%emt 0:00:30]} Qh1+ {[%emt 0:00:38]} 36. Ke2 {[%emt 0:00:30]} Qe4+ {[%emt 0:00:12]} 37. Kf1 {[%emt 0:00:00]} Qh1+ {[%emt 0:00:04]} 38. Ke2 {[%emt 0:00:00]} 1/2-1/2